[Event "Live Chess"]
[Site "Chess.com"]
[Date "2010.12.28"]
[Round "-"]
[White "SilverPanic"]
[Black "hipposcottimus"]
[Result "1-0"]
[CurrentPosition "4rk2/5RRp/8/pp6/1r6/1P3P2/P4KPP/8 b - -"]
[Timezone "UTC"]
[ECO "D10"]
[ECOUrl "https://www.chess.com/openings/Slav-Defense-3.Nc3"]
[UTCDate "2010.12.28"]
[UTCTime "04:36:47"]
[WhiteElo "1460"]
[BlackElo "1434"]
[TimeControl "300+2"]
[Termination "SilverPanic won by checkmate"]
[StartTime "04:36:47"]
[EndDate "2010.12.28"]
[EndTime "04:47:07"]
[Link "https://www.chess.com/game/live/81727339"]

1. d4 {[%clk 0:05:00]} 1... d5 {[%clk 0:05:00]} 2. c4 {[%clk 0:04:58.4]} 2... c6 {[%clk 0:05:01]} 3. Nc3 {[%clk 0:04:55.3]} 3... Nd7 {[%clk 0:05:02.1]} 4. cxd5 {[%clk 0:04:52.5]} 4... cxd5 {[%clk 0:05:02.2]} 5. Nxd5 {[%clk 0:04:51.4]} 5... e6 {[%clk 0:05:03.9]} 6. Nc3 {[%clk 0:04:51.7]} 6... Ngf6 {[%clk 0:05:05.6]} 7. e4 {[%clk 0:04:48.7]} 7... Bb4 {[%clk 0:05:07.3]} 8. Bd3 {[%clk 0:04:44]} 8... O-O {[%clk 0:04:53.9]} 9. e5 {[%clk 0:04:32.1]} 9... Nd5 {[%clk 0:04:52.6]} 10. Bd2 {[%clk 0:04:24.3]} 10... Bxc3 {[%clk 0:04:36.2]} 11. Bxc3 {[%clk 0:04:19.9]} 11... f6 {[%clk 0:04:36.8]} 12. Nf3 {[%clk 0:04:10.4]} 12... Nf4 {[%clk 0:04:18.4]} 13. O-O {[%clk 0:03:55.5]} 13... fxe5 {[%clk 0:03:59.2]} 14. dxe5 {[%clk 0:03:34.3]} 14... Qe8 {[%clk 0:03:45.5]} 15. Bc4 {[%clk 0:03:04.3]} 15... Qh5 {[%clk 0:03:41.8]} 16. Bd2 {[%clk 0:02:32.8]} 16... Nxe5 {[%clk 0:03:19.6]} 17. Nxe5 {[%clk 0:02:19.8]} 17... Qxe5 {[%clk 0:03:17.9]} 18. Re1 {[%clk 0:02:07.5]} 18... Qf5 {[%clk 0:02:43.7]} 19. Qf3 {[%clk 0:01:01.4]} 19... Bd7 {[%clk 0:02:10.3]} 20. Bxf4 {[%clk 0:00:43.8]} 20... Qxf4 {[%clk 0:02:08.4]} 21. Qxf4 {[%clk 0:00:41.9]} 21... Rxf4 {[%clk 0:02:08.4]} 22. Bxe6+ {[%clk 0:00:40.8]} 22... Bxe6 {[%clk 0:02:09.4]} 23. Rxe6 {[%clk 0:00:41.2]} 23... Raf8 {[%clk 0:02:11]} 24. f3 {[%clk 0:00:38.8]} 24... b6 {[%clk 0:02:04]} 25. Re7 {[%clk 0:00:24.9]} 25... a5 {[%clk 0:02:01.8]} 26. Rb7 {[%clk 0:00:22.2]} 26... Rb4 {[%clk 0:02:01.9]} 27. b3 {[%clk 0:00:07.9]} 27... b5 {[%clk 0:02:01.7]} 28. Rc1 {[%clk 0:00:08]} 28... Re8 {[%clk 0:01:55.2]} 29. Rcc7 {[%clk 0:00:06.6]} 29... Re1+ {[%clk 0:01:53.8]} 30. Kf2 {[%clk 0:00:08]} 30... Re8 {[%clk 0:01:54.2]} 31. Rxg7+ {[%clk 0:00:07.4]} 31... Kf8 {[%clk 0:01:54.1]} 32. Rbf7# {[%clk 0:00:08.1]} 1-0

[Event "Live Chess"]
[Site "Chess.com"]
[Date "2010.12.28"]
[Round "-"]
[White "hipposcottimus"]
[Black "nrgkid"]
[Result "0-1"]
[CurrentPosition "1k1r4/8/2p5/8/pP6/1q6/2Kp4/3R4 w - -"]
[Timezone "UTC"]
[ECO "B00"]
[ECOUrl "https://www.chess.com/openings/Kings-Pawn-Opening-Ware-Defense-2.d4"]
[UTCDate "2010.12.28"]
[UTCTime "04:17:49"]
[WhiteElo "1442"]
[BlackElo "1171"]
[TimeControl "420"]
[Termination "nrgkid won by checkmate"]
[StartTime "04:17:49"]
[EndDate "2010.12.28"]
[EndTime "04:32:12"]
[Link "https://www.chess.com/game/live/81723335"]

1. e4 {[%clk 0:07:00]} 1... a5 {[%clk 0:07:00]} 2. d4 {[%clk 0:06:58.7]} 2... a4 {[%clk 0:06:58.7]} 3. a3 {[%clk 0:06:53.1]} 3... g6 {[%clk 0:06:57.1]} 4. b3 {[%clk 0:06:51.7]} 4... Bg7 {[%clk 0:06:55.2]} 5. Nd2 {[%clk 0:06:50.4]} 5... c5 {[%clk 0:06:53.4]} 6. Bb2 {[%clk 0:06:40]} 6... cxd4 {[%clk 0:06:49]} 7. Ndf3 {[%clk 0:06:32.5]} 7... Qa5+ {[%clk 0:06:40.2]} 8. b4 {[%clk 0:06:23.7]} 8... Qb6 {[%clk 0:06:16.3]} 9. Nxd4 {[%clk 0:06:17.2]} 9... Nc6 {[%clk 0:06:12.7]} 10. Ngf3 {[%clk 0:06:08.2]} 10... d6 {[%clk 0:06:04.1]} 11. Bb5 {[%clk 0:06:02]} 11... Bg4 {[%clk 0:05:52.1]} 12. Qd3 {[%clk 0:05:54.1]} 12... e5 {[%clk 0:05:50.2]} 13. Nxc6 {[%clk 0:05:48.8]} 13... bxc6 {[%clk 0:05:48]} 14. Bc4 {[%clk 0:05:40.9]} 14... Bxf3 {[%clk 0:05:38.3]} 15. Qxf3 {[%clk 0:05:35.5]} 15... f6 {[%clk 0:05:27.3]} 16. O-O {[%clk 0:05:30.9]} 16... Ne7 {[%clk 0:05:21.9]} 17. Be6 {[%clk 0:05:23.7]} 17... f5 {[%clk 0:05:09]} 18. Rfe1 {[%clk 0:05:15.4]} 18... Rf8 {[%clk 0:05:01.6]} 19. Rad1 {[%clk 0:05:06.5]} 19... fxe4 {[%clk 0:04:59.7]} 20. Qxe4 {[%clk 0:05:05.5]} 20... Qxf2+ {[%clk 0:04:58]} 21. Kh1 {[%clk 0:04:58.1]} 21... d5 {[%clk 0:04:43.2]} 22. Qg4 {[%clk 0:04:39.4]} 22... Nf5 {[%clk 0:04:26.7]} 23. Rf1 {[%clk 0:04:23.9]} 23... Qxc2 {[%clk 0:03:31.1]} 24. Bc1 {[%clk 0:04:06]} 24... d4 {[%clk 0:03:06.5]} 25. Bxf5 {[%clk 0:03:55.5]} 25... Rxf5 {[%clk 0:02:58.8]} 26. Qh3 {[%clk 0:03:33.1]} 26... Rxf1+ {[%clk 0:02:31.5]} 27. Rxf1 {[%clk 0:03:29.4]} 27... h6 {[%clk 0:02:29.2]} 28. Qe6+ {[%clk 0:03:26.2]} 28... Kd8 {[%clk 0:02:13.5]} 29. Qxg6 {[%clk 0:03:10.5]} 29... Qe2 {[%clk 0:02:06.7]} 30. Rg1 {[%clk 0:03:04.6]} 30... Bf8 {[%clk 0:01:54.6]} 31. Bxh6 {[%clk 0:02:52.1]} 31... Bxh6 {[%clk 0:01:46.5]} 32. Qxh6 {[%clk 0:02:48.7]} 32... Rc8 {[%clk 0:01:41.7]} 33. Qd6+ {[%clk 0:02:26.7]} 33... Ke8 {[%clk 0:01:36.4]} 34. h3 {[%clk 0:02:07.1]} 34... d3 {[%clk 0:01:32.9]} 35. Kh2 {[%clk 0:01:44]} 35... d2 {[%clk 0:01:28.9]} 36. Qg6+ {[%clk 0:01:35.7]} 36... Kd8 {[%clk 0:01:24.1]} 37. Qg8+ {[%clk 0:01:25.9]} 37... Kd7 {[%clk 0:01:20.3]} 38. Qf7+ {[%clk 0:01:16.7]} 38... Kd8 {[%clk 0:01:15.9]} 39. Qf6+ {[%clk 0:01:06]} 39... Kc7 {[%clk 0:01:14.4]} 40. Qf7+ {[%clk 0:01:02.7]} 40... Kb8 {[%clk 0:01:12.2]} 41. Qd7 {[%clk 0:01:01.4]} 41... e4 {[%clk 0:01:00.4]} 42. h4 {[%clk 0:00:58.2]} 42... e3 {[%clk 0:00:58.3]} 43. Kh3 {[%clk 0:00:50.6]} 43... Qe1 {[%clk 0:00:48.1]} 44. Kh2 {[%clk 0:00:36.3]} 44... Qxh4+ {[%clk 0:00:45.3]} 45. Qh3 {[%clk 0:00:32.5]} 45... Qxh3+ {[%clk 0:00:44.1]} 46. gxh3 {[%clk 0:00:31.8]} 46... e2 {[%clk 0:00:32.4]} 47. h4 {[%clk 0:00:27.3]} 47... e1=Q {[%clk 0:00:29.4]} 48. h5 {[%clk 0:00:25.5]} 48... Qh4+ {[%clk 0:00:26.6]} 49. Kg2 {[%clk 0:00:24.2]} 49... Qxh5 {[%clk 0:00:24.8]} 50. Kf2 {[%clk 0:00:21.7]} 50... Rf8+ {[%clk 0:00:23.4]} 51. Ke3 {[%clk 0:00:15.7]} 51... Qh6+ {[%clk 0:00:21.7]} 52. Kd3 {[%clk 0:00:13.9]} 52... Rd8+ {[%clk 0:00:20.1]} 53. Kc2 {[%clk 0:00:11.8]} 53... Qh2 {[%clk 0:00:18]} 54. Rd1 {[%clk 0:00:11.2]} 54... Qh3 {[%clk 0:00:15.9]} 55. Kb2 {[%clk 0:00:10]} 55... Qh8+ {[%clk 0:00:14.4]} 56. Kc2 {[%clk 0:00:08.3]} 56... Qh7+ {[%clk 0:00:12.1]} 57. Kb2 {[%clk 0:00:08.1]} 57... Qg7+ {[%clk 0:00:11.1]} 58. Ka2 {[%clk 0:00:07.8]} 58... Qf7+ {[%clk 0:00:09.1]} 59. Kb1 {[%clk 0:00:07.5]} 59... Qb3+ {[%clk 0:00:07.6]} 60. Ka1 {[%clk 0:00:06.7]} 60... Qc3+ {[%clk 0:00:06.1]} 61. Kb1 {[%clk 0:00:06.4]} 61... Qxa3 {[%clk 0:00:05]} 62. Kc2 {[%clk 0:00:05.1]} 62... Qb3# {[%clk 0:00:03.7]} 0-1

[Event "Live Chess"]
[Site "Chess.com"]
[Date "2010.12.28"]
[Round "-"]
[White "lolagotit"]
[Black "hipposcottimus"]
[Result "1-0"]
[CurrentPosition "r2q1rk1/p1p3pp/Rp1bp3/3p1p2/1PPPn3/4PN2/1P1NQPPP/1BB2RK1 b - -"]
[Timezone "UTC"]
[ECO "D02"]
[ECOUrl "https://www.chess.com/openings/Queens-Pawn-Opening-Zukertort-Variation"]
[UTCDate "2010.12.28"]
[UTCTime "03:23:45"]
[WhiteElo "1505"]
[BlackElo "1455"]
[TimeControl "300+5"]
[Termination "lolagotit won by resignation"]
[StartTime "03:23:45"]
[EndDate "2010.12.28"]
[EndTime "03:26:01"]
[Link "https://www.chess.com/game/live/81712841"]

1. d4 {[%clk 0:05:00]} 1... d5 {[%clk 0:05:00]} 2. Nf3 {[%clk 0:05:03.1]} 2... f5 {[%clk 0:05:01.1]} 3. e3 {[%clk 0:05:06.9]} 3... Nc6 {[%clk 0:05:03.4]} 4. Bd3 {[%clk 0:05:09.9]} 4... e6 {[%clk 0:05:06.4]} 5. Nbd2 {[%clk 0:05:03.7]} 5... Nf6 {[%clk 0:05:07]} 6. O-O {[%clk 0:05:06]} 6... Bd6 {[%clk 0:05:09.6]} 7. Qe2 {[%clk 0:05:04.2]} 7... O-O {[%clk 0:05:07.8]} 8. c4 {[%clk 0:05:07.3]} 8... Nb4 {[%clk 0:05:00.9]} 9. Bb1 {[%clk 0:05:01.3]} 9... b6 {[%clk 0:04:57.8]} 10. a3 {[%clk 0:04:58.2]} 10... Ba6 {[%clk 0:04:49.2]} 11. axb4 {[%clk 0:04:58.1]} 11... Ne4 {[%clk 0:04:48.3]} 12. Rxa6 {[%clk 0:04:57.1]} 1-0

[Event "Live Chess"]
[Site "Chess.com"]
[Date "2010.12.28"]
[Round "-"]
[White "westend"]
[Black "hipposcottimus"]
[Result "0-1"]
[CurrentPosition "r3kb2/ppp2pp1/8/1q1p4/8/4P1P1/P1P2P2/RN2K3 w Qq -"]
[Timezone "UTC"]
[ECO "D00"]
[ECOUrl "https://www.chess.com/openings/Queens-Pawn-Opening-Accelerated-London-System-2...Nf6-3.e3"]
[UTCDate "2010.12.28"]
[UTCTime "03:19:21"]
[WhiteElo "1309"]
[BlackElo "1462"]
[TimeControl "300"]
[Termination "hipposcottimus won by resignation"]
[StartTime "03:19:21"]
[EndDate "2010.12.28"]
[EndTime "03:21:37"]
[Link "https://www.chess.com/game/live/81711960"]

1. d4 {[%clk 0:05:00]} 1... d5 {[%clk 0:05:00]} 2. Bf4 {[%clk 0:04:59]} 2... Nf6 {[%clk 0:04:54.4]} 3. e3 {[%clk 0:04:57.7]} 3... Nc6 {[%clk 0:04:49.4]} 4. Nf3 {[%clk 0:04:54.7]} 4... Nh5 {[%clk 0:04:47.2]} 5. Bg3 {[%clk 0:04:50.3]} 5... Nxg3 {[%clk 0:04:45.7]} 6. hxg3 {[%clk 0:04:49.7]} 6... Bg4 {[%clk 0:04:42]} 7. Bd3 {[%clk 0:04:45.7]} 7... e5 {[%clk 0:04:32.7]} 8. dxe5 {[%clk 0:04:31.2]} 8... Nxe5 {[%clk 0:04:30.7]} 9. Rxh7 {[%clk 0:04:27.1]} 9... Rxh7 {[%clk 0:04:18.4]} 10. Bxh7 {[%clk 0:04:25.3]} 10... Qf6 {[%clk 0:04:17.5]} 11. Bd3 {[%clk 0:04:14.4]} 11... Nxf3+ {[%clk 0:04:15.1]} 12. gxf3 {[%clk 0:04:12.5]} 12... Bxf3 {[%clk 0:04:14.3]} 13. Be2 {[%clk 0:04:06.7]} 13... Bxe2 {[%clk 0:03:59.6]} 14. Qxe2 {[%clk 0:04:05.6]} 14... Qxb2 {[%clk 0:03:59.2]} 15. Qb5+ {[%clk 0:03:57.2]} 15... Qxb5 {[%clk 0:03:55.2]} 0-1

[Event "Live Chess"]
[Site "Chess.com"]
[Date "2010.12.28"]
[Round "-"]
[White "hipposcottimus"]
[Black "ventrue7"]
[Result "1-0"]
[CurrentPosition "5R1k/p3Q2p/2bp3B/2p5/2P1q3/8/Pr4PP/R6K b - -"]
[Timezone "UTC"]
[ECO "B20"]
[ECOUrl "https://www.chess.com/openings/Sicilian-Defense"]
[UTCDate "2010.12.28"]
[UTCTime "00:32:36"]
[WhiteElo "1625"]
[BlackElo "1629"]
[TimeControl "60"]
[Termination "hipposcottimus won by checkmate"]
[StartTime "00:32:36"]
[EndDate "2010.12.28"]
[EndTime "00:34:22"]
[Link "https://www.chess.com/game/live/81675865"]

1. e4 {[%clk 0:01:00]} 1... c5 {[%clk 0:01:00]} 2. Bb5 {[%clk 0:00:57.5]} 2... Nc6 {[%clk 0:00:58.6]} 3. Bxc6 {[%clk 0:00:56.9]} 3... bxc6 {[%clk 0:00:57]} 4. c4 {[%clk 0:00:56.6]} 4... d6 {[%clk 0:00:55.5]} 5. Nc3 {[%clk 0:00:56]} 5... Nf6 {[%clk 0:00:55]} 6. d3 {[%clk 0:00:55.7]} 6... g6 {[%clk 0:00:54]} 7. Nf3 {[%clk 0:00:53.9]} 7... Bg7 {[%clk 0:00:53.6]} 8. Be3 {[%clk 0:00:53.6]} 8... O-O {[%clk 0:00:53.3]} 9. O-O {[%clk 0:00:53.3]} 9... Bg4 {[%clk 0:00:52.8]} 10. d4 {[%clk 0:00:52.3]} 10... cxd4 {[%clk 0:00:51.5]} 11. Bxd4 {[%clk 0:00:50.7]} 11... c5 {[%clk 0:00:51.1]} 12. Be3 {[%clk 0:00:49.2]} 12... Nd7 {[%clk 0:00:50.7]} 13. Qd3 {[%clk 0:00:43.1]} 13... Ne5 {[%clk 0:00:49.6]} 14. Nxe5 {[%clk 0:00:40.3]} 14... Bxe5 {[%clk 0:00:49.3]} 15. f3 {[%clk 0:00:39.1]} 15... Bd7 {[%clk 0:00:48.6]} 16. Qd2 {[%clk 0:00:38.7]} 16... Qa5 {[%clk 0:00:47.4]} 17. Bh6 {[%clk 0:00:36.2]} 17... Rfb8 {[%clk 0:00:45.5]} 18. f4 {[%clk 0:00:34.1]} 18... Bxc3 {[%clk 0:00:43.9]} 19. bxc3 {[%clk 0:00:32.2]} 19... Qa3 {[%clk 0:00:41.8]} 20. f5 {[%clk 0:00:30.3]} 20... Rb2 {[%clk 0:00:39.6]} 21. Qg5 {[%clk 0:00:28.3]} 21... Qxc3 {[%clk 0:00:36.4]} 22. Qxe7 {[%clk 0:00:18.6]} 22... Qd4+ {[%clk 0:00:33.9]} 23. Kh1 {[%clk 0:00:16.5]} 23... Bc6 {[%clk 0:00:25.9]} 24. fxg6 {[%clk 0:00:15.2]} 24... Qxe4 {[%clk 0:00:21.9]} 25. gxf7+ {[%clk 0:00:12.7]} 25... Kh8 {[%clk 0:00:20.4]} 26. f8=Q+ {[%clk 0:00:10.2]} 26... Rxf8 {[%clk 0:00:18.4]} 27. Rxf8# {[%clk 0:00:09.7]} 1-0

[Event "Live Chess"]
[Site "Chess.com"]
[Date "2010.12.28"]
[Round "-"]
[White "hipposcottimus"]
[Black "greatpretender133"]
[Result "1-0"]
[CurrentPosition "2kr4/1bpp1p2/pp5Q/3PP3/3b3q/2N2R2/PP2B1PP/R1BQ3K b - -"]
[Timezone "UTC"]
[ECO "C00"]
[ECOUrl "https://www.chess.com/openings/French-Defense-Normal-Variation"]
[UTCDate "2010.12.28"]
[UTCTime "00:13:32"]
[WhiteElo "1457"]
[BlackElo "1372"]
[TimeControl "240+4"]
[Termination "hipposcottimus won by resignation"]
[StartTime "00:13:32"]
[EndDate "2010.12.28"]
[EndTime "00:18:14"]
[Link "https://www.chess.com/game/live/81671632"]

1. e4 {[%clk 0:04:00]} 1... e6 {[%clk 0:04:00]} 2. d4 {[%clk 0:04:02.5]} 2... Be7 {[%clk 0:04:03]} 3. c4 {[%clk 0:04:05]} 3... Nc6 {[%clk 0:04:04.5]} 4. Nc3 {[%clk 0:04:06]} 4... Nf6 {[%clk 0:04:05.9]} 5. d5 {[%clk 0:04:07.5]} 5... exd5 {[%clk 0:04:07.6]} 6. cxd5 {[%clk 0:04:11.2]} 6... Ne5 {[%clk 0:04:09.5]} 7. f4 {[%clk 0:04:13]} 7... Ng6 {[%clk 0:03:54.4]} 8. e5 {[%clk 0:04:04.1]} 8... Ng8 {[%clk 0:03:51.3]} 9. Nf3 {[%clk 0:03:59.9]} 9... a6 {[%clk 0:03:52.2]} 10. Be2 {[%clk 0:03:57]} 10... b6 {[%clk 0:03:48.3]} 11. O-O {[%clk 0:03:58.1]} 11... Bb7 {[%clk 0:03:51.1]} 12. f5 {[%clk 0:03:51.1]} 12... Nh4 {[%clk 0:03:49.4]} 13. f6 {[%clk 0:03:50.4]} 13... Bc5+ {[%clk 0:03:47.8]} 14. Kh1 {[%clk 0:03:52]} 14... Nxf3 {[%clk 0:03:26.8]} 15. fxg7 {[%clk 0:03:34.4]} 15... Qh4 {[%clk 0:03:24.7]} 16. Rxf3 {[%clk 0:03:23.9]} 16... O-O-O {[%clk 0:03:21.2]} 17. gxh8=Q {[%clk 0:03:25]} 17... Nh6 {[%clk 0:03:23.7]} 18. Qxh7 {[%clk 0:03:14.2]} 18... Bd4 {[%clk 0:02:51]} 19. Qxh6 {[%clk 0:03:04.9]} 1-0

[Event "Live Chess"]
[Site "Chess.com"]
[Date "2010.12.28"]
[Round "-"]
[White "hipposcottimus"]
[Black "jouke001"]
[Result "1-0"]
[CurrentPosition "6Qk/3B4/5N2/p6p/8/8/PPP2PPP/5RK1 b - -"]
[Timezone "UTC"]
[ECO "C41"]
[ECOUrl "https://www.chess.com/openings/Philidor-Defense"]
[UTCDate "2010.12.28"]
[UTCTime "00:07:23"]
[WhiteElo "1617"]
[BlackElo "1266"]
[TimeControl "60"]
[Termination "hipposcottimus won by checkmate"]
[StartTime "00:07:23"]
[EndDate "2010.12.28"]
[EndTime "00:09:10"]
[Link "https://www.chess.com/game/live/81669921"]

1. e4 {[%clk 0:01:00]} 1... d6 {[%clk 0:01:00]} 2. Nf3 {[%clk 0:00:59.7]} 2... e5 {[%clk 0:00:59.3]} 3. d4 {[%clk 0:00:59.4]} 3... Be6 {[%clk 0:00:58.8]} 4. d5 {[%clk 0:00:58]} 4... Bg4 {[%clk 0:00:57.8]} 5. Nc3 {[%clk 0:00:57.6]} 5... Bxf3 {[%clk 0:00:56.1]} 6. Qxf3 {[%clk 0:00:57.3]} 6... Nf6 {[%clk 0:00:54]} 7. Bb5+ {[%clk 0:00:57]} 7... c6 {[%clk 0:00:52.5]} 8. dxc6 {[%clk 0:00:56.4]} 8... bxc6 {[%clk 0:00:51.7]} 9. Ba4 {[%clk 0:00:56.2]} 9... a5 {[%clk 0:00:49.8]} 10. Bb3 {[%clk 0:00:55.8]} 10... Qd7 {[%clk 0:00:47]} 11. Bg5 {[%clk 0:00:55.4]} 11... h6 {[%clk 0:00:45.8]} 12. Bxf6 {[%clk 0:00:54.5]} 12... gxf6 {[%clk 0:00:44.9]} 13. O-O {[%clk 0:00:53.8]} 13... Bg7 {[%clk 0:00:43.5]} 14. Rad1 {[%clk 0:00:53.4]} 14... f5 {[%clk 0:00:41.8]} 15. Na4 {[%clk 0:00:53.1]} 15... fxe4 {[%clk 0:00:40.4]} 16. Qxe4 {[%clk 0:00:52.8]} 16... Qe6 {[%clk 0:00:37.4]} 17. Nb6 {[%clk 0:00:49.8]} 17... Qe7 {[%clk 0:00:35.7]} 18. Nxa8 {[%clk 0:00:49]} 18... Nd7 {[%clk 0:00:33.4]} 19. Qxc6 {[%clk 0:00:46.6]} 19... f6 {[%clk 0:00:32.4]} 20. Rxd6 {[%clk 0:00:45.3]} 20... h5 {[%clk 0:00:22.3]} 21. Re6 {[%clk 0:00:43.5]} 21... Bf8 {[%clk 0:00:19]} 22. Rxe7+ {[%clk 0:00:42.3]} 22... Bxe7 {[%clk 0:00:18.4]} 23. Nc7+ {[%clk 0:00:42]} 23... Kf8 {[%clk 0:00:16.3]} 24. Be6 {[%clk 0:00:41.7]} 24... Kg7 {[%clk 0:00:15.1]} 25. Bxd7 {[%clk 0:00:40.4]} 25... Bf8 {[%clk 0:00:13.5]} 26. Qe6 {[%clk 0:00:39.9]} 26... Rg8 {[%clk 0:00:11.6]} 27. Ne8+ {[%clk 0:00:39.4]} 27... Kg6 {[%clk 0:00:10.2]} 28. Nxf6 {[%clk 0:00:38.6]} 28... Kg7 {[%clk 0:00:08.6]} 29. Ne8+ {[%clk 0:00:37]} 29... Kh7 {[%clk 0:00:06]} 30. Qxe5 {[%clk 0:00:36.6]} 30... Rg7 {[%clk 0:00:04.7]} 31. Qf5+ {[%clk 0:00:35.1]} 31... Rg6 {[%clk 0:00:03.3]} 32. Qxf8 {[%clk 0:00:33.4]} 32... Rg8 {[%clk 0:00:00.9]} 33. Nf6+ {[%clk 0:00:32]} 33... Kh8 {[%clk 0:00:00.2]} 34. Qxg8# {[%clk 0:00:30.2]} 1-0

[Event "Live Chess"]
[Site "Chess.com"]
[Date "2010.12.27"]
[Round "-"]
[White "ausit"]
[Black "hipposcottimus"]
[Result "1-0"]
[CurrentPosition "8/8/1Q4p1/1PB3k1/4P3/8/6PP/6K1 b - -"]
[Timezone "UTC"]
[ECO "A10"]
[ECOUrl "https://www.chess.com/openings/English-Opening-Jaenisch-Gambit"]
[UTCDate "2010.12.27"]
[UTCTime "23:39:24"]
[WhiteElo "1327"]
[BlackElo "1451"]
[TimeControl "240+10"]
[Termination "ausit won on time"]
[StartTime "23:39:24"]
[EndDate "2010.12.27"]
[EndTime "23:58:42"]
[Link "https://www.chess.com/game/live/81662508"]

1. c4 {[%clk 0:04:00]} 1... b5 {[%clk 0:04:00]} 2. Na3 {[%clk 0:03:58.2]} 2... bxc4 {[%clk 0:04:06.6]} 3. Nxc4 {[%clk 0:04:06.3]} 3... d5 {[%clk 0:04:16.3]} 4. Ne5 {[%clk 0:04:04.7]} 4... f6 {[%clk 0:04:24.8]} 5. Qa4+ {[%clk 0:04:01.2]} 5... Bd7 {[%clk 0:04:31.9]} 6. Nxd7 {[%clk 0:04:07.2]} 6... Nxd7 {[%clk 0:04:41.1]} 7. e3 {[%clk 0:03:15.7]} 7... e5 {[%clk 0:04:49.2]} 8. Nf3 {[%clk 0:03:11.3]} 8... Bd6 {[%clk 0:04:57.1]} 9. Be2 {[%clk 0:02:54.1]} 9... Ne7 {[%clk 0:05:04.4]} 10. O-O {[%clk 0:02:58.6]} 10... O-O {[%clk 0:05:11.5]} 11. d3 {[%clk 0:03:00.1]} 11... Nb6 {[%clk 0:05:17.2]} 12. Qh4 {[%clk 0:03:02.2]} 12... Ng6 {[%clk 0:05:22.4]} 13. Qh3 {[%clk 0:03:05.7]} 13... f5 {[%clk 0:05:20.1]} 14. a4 {[%clk 0:03:10.8]} 14... e4 {[%clk 0:05:26.6]} 15. dxe4 {[%clk 0:03:17.1]} 15... fxe4 {[%clk 0:05:35.4]} 16. Nd4 {[%clk 0:03:14.4]} 16... Be7 {[%clk 0:05:11.8]} 17. a5 {[%clk 0:03:22.1]} 17... c5 {[%clk 0:05:11.2]} 18. Nc6 {[%clk 0:03:10.2]} 18... Qc7 {[%clk 0:05:14.3]} 19. Nxe7+ {[%clk 0:02:42]} 19... Qxe7 {[%clk 0:05:23.8]} 20. axb6 {[%clk 0:02:46.2]} 20... axb6 {[%clk 0:05:33.5]} 21. Ra3 {[%clk 0:02:35.1]} 21... c4 {[%clk 0:05:32.2]} 22. Rc3 {[%clk 0:02:25.6]} 22... b5 {[%clk 0:05:38.4]} 23. Bd2 {[%clk 0:02:19.7]} 23... b4 {[%clk 0:05:43.6]} 24. Rcc1 {[%clk 0:02:23.1]} 24... b3 {[%clk 0:05:28.5]} 25. Ra1 {[%clk 0:02:22.6]} 25... Qc5 {[%clk 0:05:19.3]} 26. Bc3 {[%clk 0:02:23.2]} 26... Ra2 {[%clk 0:05:25.8]} 27. Qd7 {[%clk 0:02:17.3]} 27... Ne7 {[%clk 0:05:08.9]} 28. Qe6+ {[%clk 0:02:14.7]} 28... Rf7 {[%clk 0:05:01.4]} 29. Bd4 {[%clk 0:01:54.4]} 29... Qb4 {[%clk 0:05:09]} 30. f3 {[%clk 0:01:40.9]} 30... Rxa1 {[%clk 0:04:54.3]} 31. Rxa1 {[%clk 0:01:46.4]} 31... Qb8 {[%clk 0:04:30]} 32. fxe4 {[%clk 0:01:50.6]} 32... Qc8 {[%clk 0:04:26.8]} 33. exd5 {[%clk 0:01:32.4]} 33... Qxe6 {[%clk 0:03:32.4]} 34. dxe6 {[%clk 0:01:39.4]} 34... Rf8 {[%clk 0:03:37.4]} 35. Bxc4 {[%clk 0:01:46.4]} 35... Nc6 {[%clk 0:03:44.2]} 36. Bxb3 {[%clk 0:01:49.7]} 36... Rb8 {[%clk 0:03:32.6]} 37. Bd5 {[%clk 0:01:50.7]} 37... Ne7 {[%clk 0:03:32.9]} 38. Be5 {[%clk 0:01:29.4]} 38... Rc8 {[%clk 0:03:18.9]} 39. b4 {[%clk 0:01:18.1]} 39... Nxd5 {[%clk 0:03:22.1]} 40. b5 {[%clk 0:01:23]} 40... Kf8 {[%clk 0:03:18.5]} 41. Ra7 {[%clk 0:01:28.3]} 41... g6 {[%clk 0:03:17.7]} 42. e4 {[%clk 0:01:32.7]} 42... Nb6 {[%clk 0:02:42.2]} 43. Rxh7 {[%clk 0:01:26.4]} 43... Rc5 {[%clk 0:02:37.9]} 44. Bd6+ {[%clk 0:01:27.2]} 44... Kg8 {[%clk 0:02:44.7]} 45. Bxc5 {[%clk 0:01:28.9]} 45... Kxh7 {[%clk 0:02:53.4]} 46. e7 {[%clk 0:01:37]} 46... Kg7 {[%clk 0:03:03.1]} 47. e8=Q {[%clk 0:01:44.9]} 47... Kf6 {[%clk 0:03:12.6]} 48. Qc6+ {[%clk 0:01:49.5]} 48... Kg5 {[%clk 0:03:18.4]} 49. Qxb6 {[%clk 0:01:57.9]} 1-0